fUST/lending_fUST_20250617
["ID","MTS","AMOUNT","RATE_DAILY","PERIOD"]
[366286319,1750174256231,-460.0,0.00024136,6]
[366286320,1750174256241,-441.80511731,0.00024136,6]
[366286321,1750174256251,-362.84586666,0.00024136,6]
[366286322,1750174256262,-460.0,0.00024136,6]
[366286323,1750174256271,-1009.27,0.00024136,6]
[366286324,1750174256281,-2923.79,0.00024136,6]
[366286325,1750174256291,-151.0,0.00024136,7]
[366286326,1750174256301,-151.0,0.00024136,7]
[366286327,1750174256311,-460.0,0.00024136,6]
[366286329,1750174256322,-460.0,0.00024136,6]
[366286331,1750174256331,-460.0,0.00024136,6]
[366286333,1750174256341,-405.5032223,0.00024136,6]
[366286335,1750174256351,-460.0,0.00024136,6]
[366286337,1750174256362,-1743.26,0.00024136,6]
[366286339,1750174256373,-460.0,0.00024136,6]
[366286341,1750174256383,-1363.15,0.00024136,6]
[366286343,1750174256394,-1055.94,0.00024136,6]
[366286345,1750174256404,-8763.84,0.00024136,6]
[366286346,1750174256414,-460.0,0.00024136,6]
[366286348,1750174256424,-985.52,0.00024136,6]
[366286350,1750174256437,-460.0,0.00024136,6]
[366286352,1750174256447,-460.0,0.00024136,6]
[366286354,1750174256457,-460.0,0.00024136,6]
[366286356,1750174256467,-631.51,0.00024136,6]
[366286358,1750174256477,-986.69,0.00024136,6]
[366286360,1750174256487,-460.0,0.00024136,6]
[366286362,1750174256497,-460.0,0.00024136,6]
[366286364,1750174256508,-460.0,0.00024136,6]
[366286366,1750174256519,-460.0,0.00024136,6]
[366286368,1750174256529,-151.0,0.00024136,7]
[366286370,1750174256539,-460.0,0.00024136,6]
[366286372,1750174256549,-370.0,0.00024136,6]
[366286374,1750174256559,-151.0,0.00024136,7]
[366286376,1750174256569,-1632.77,0.00024136,6]
[366286378,1750174256579,-1240.6,0.00024136,6]
[366286380,1750174256589,-460.0,0.00024136,6]
[366286382,1750174256599,-460.0,0.00024136,6]
[366286384,1750174256610,-460.0,0.00024136,6]
[366286386,1750174256620,-308.82249813,0.00024136,6]
[366286388,1750174256631,-2777.92,0.00024136,6]
[366286390,1750174256642,-9801.69,0.00024136,6]
[366286391,1750174256652,-460.0,0.00024136,6]
[366286392,1750174256663,-1074.78,0.00024136,6]
[366286393,1750174256672,-460.0,0.00024136,6]
[366286394,1750174256685,-460.0,0.00024136,6]
[366286395,1750174256695,-460.0,0.00024136,6]
[366286396,1750174256705,-1650.79,0.00024136,6]
[366286397,1750174256715,-1711.03,0.00024136,6]
[366286398,1750174256725,-460.0,0.00024136,6]
[366286399,1750174256736,-460.0,0.00024136,6]
[366286400,1750174256747,-4214.03,0.00024136,6]
[366286401,1750174256757,-366.817209,0.00024136,6]
[366286402,1750174256767,-460.0,0.00024136,6]
[366286404,1750174256777,-7214.71,0.00024136,6]
[366286406,1750174256787,-2862.09,0.00024136,6]
[366286408,1750174256797,-460.0,0.00024136,6]
[366286410,1750174256807,-460.0,0.00024136,6]
[366286412,1750174256817,-4869.04,0.00024136,6]
[366286414,1750174256827,-460.0,0.00024136,6]
[366286416,1750174256837,-3392.84,0.00024136,6]
[366286418,1750174256846,-847.24,0.00024136,6]
[366286420,1750174256856,-460.0,0.00024136,6]
[366286422,1750174256865,-2534.15,0.00024136,6]
[366286424,1750174256875,-460.0,0.00024136,6]
[366286426,1750174256885,-460.0,0.00024136,6]
[366286428,1750174256895,-460.0,0.00024136,6]
[366286430,1750174256904,-670.65,0.00024136,6]
[366286432,1750174256914,-460.0,0.00024136,6]
[366286434,1750174256926,-460.0,0.00024136,6]
[366286436,1750174256939,-460.0,0.00024136,6]
[366286438,1750174256949,-460.0,0.00024136,6]
[366286440,1750174256959,-460.0,0.00024136,6]
[366286442,1750174256970,-1973.93,0.00024136,6]
[366286445,1750174256993,-460.0,0.00024136,6]
[366286447,1750174257005,-460.0,0.00024136,6]
[366286449,1750174257017,-281.04995411,0.00024136,6]
[366286451,1750174257027,-460.0,0.00024136,6]
[366286453,1750174257037,-460.0,0.00024136,6]
[366286455,1750174257048,-460.0,0.00024136,6]
[366286457,1750174257058,-460.0,0.00024136,6]
[366286459,1750174257069,-460.0,0.00024136,6]
[366286461,1750174257079,-460.0,0.00024136,6]
[366286463,1750174257090,-460.0,0.00024136,6]
[366286465,1750174257101,-460.0,0.00024136,6]
[366286467,1750174257113,-468.56,0.00024136,6]
[366286469,1750174257123,-460.0,0.00024136,6]
[366286471,1750174257134,-460.0,0.00024136,6]
[366286473,1750174257144,-460.0,0.00024136,6]
[366286474,1750174257155,-306.57011729,0.00024136,6]
[366286476,1750174257165,-460.0,0.00024136,6]
[366286478,1750174257175,-921.03,0.00024136,6]
[366286480,1750174257188,-235.5141655,0.00024136,6]
[366286482,1750174257200,-458.78370305,0.00024136,6]
[366286484,1750174257210,-460.0,0.00024136,6]
[366286486,1750174257220,-460.0,0.00024136,6]
[366286488,1750174257230,-717.1,0.00024136,6]
[366286490,1750174257240,-403.6123643,0.00024136,6]
[366286492,1750174257250,-220.0,0.00024136,6]
[366286494,1750174257260,-1493.61,0.00024136,6]
[366286496,1750174257271,-470.59,0.00024136,6]
[366286498,1750174257281,-460.0,0.00024136,6]
[366286500,1750174257291,-460.0,0.00024136,6]
[366286502,1750174257303,-460.0,0.00024136,6]
[366286504,1750174257313,-3179.23,0.00024136,6]
[366286506,1750174257323,-460.0,0.00024136,6]
[366286508,1750174257332,-422.87216807,0.00024136,6]
[366286510,1750174257342,-855.43,0.00024136,6]
[366286512,1750174257352,-1710.65,0.00024136,6]
[366286514,1750174257362,-460.0,0.00024136,6]
[366286516,1750174257372,-2012.27,0.00024136,6]
[366286518,1750174257382,-370.0,0.00024136,6]
[366286520,1750174257392,-2354.06,0.00024136,6]
[366286521,1750174257402,-460.0,0.00024136,6]
[366286524,1750174257413,-10545.92,0.00024136,6]
[366286525,1750174257423,-460.0,0.00024136,6]
[366286527,1750174257435,-460.0,0.00024136,6]
[366286529,1750174257445,-460.0,0.00024136,6]
[366286531,1750174257455,-613.88,0.00024136,6]
[366286533,1750174257465,-460.0,0.00024136,6]
[366286535,1750174257475,-460.0,0.00024136,6]
[366286537,1750174257485,-460.0,0.00024136,6]
[366286539,1750174257495,-460.0,0.00024136,6]
[366286541,1750174257505,-460.0,0.00024136,6]
[366286543,1750174257515,-3722.2,0.00024136,6]
[366286545,1750174257526,-151.0,0.00024136,7]
[366286548,1750174257537,-151.0,0.00024136,7]
[366286550,1750174257546,-410.0,0.00024136,6]
[366286552,1750174257556,-460.0,0.00024136,6]
[366286553,1750174257566,-9699.48,0.00024136,6]
[366286555,1750174257575,-460.0,0.00024136,6]
[366286557,1750174257586,-460.0,0.00024136,6]
[366286559,1750174257596,-460.0,0.00024136,6]
[366286561,1750174257607,-594.5,0.00024136,6]
[366286563,1750174257618,-460.0,0.00024136,6]
[366286565,1750174257628,-460.0,0.00024136,6]
[366286567,1750174257639,-460.0,0.00024136,6]
[366286569,1750174257650,-420.0,0.00024136,6]
[366286571,1750174257661,-460.0,0.00024136,6]
[366286573,1750174257671,-460.0,0.00024136,6]
[366286575,1750174257684,-460.0,0.00024136,6]
[366286577,1750174257694,-460.0,0.00024136,6]
[366286579,1750174257704,-460.0,0.00024136,6]
[366286581,1750174257714,-460.0,0.00024136,6]
[366286583,1750174257723,-460.0,0.00024136,6]
[366286585,1750174257733,-460.0,0.00024136,6]
[366286587,1750174257742,-151.0,0.00024136,7]
[366286588,1750174257752,-168.0,0.00024136,2]
[366286590,1750174257762,-5484.144674,0.0002414,2]
[366286593,1750174257772,-1747.0,0.00024149,3]
[366286594,1750174257782,-156.01367261,0.00024149,3]
[366286596,1750174257792,-317.0,0.00024149,3]
[366286598,1750174257802,-317.0,0.00024149,3]
[366286600,1750174257812,-317.0,0.00024149,3]
[366286602,1750174257822,-317.0,0.00024149,3]
[366286604,1750174257832,-317.0,0.00024149,3]
[366286606,1750174257842,-317.0,0.00024149,3]
[366286608,1750174257852,-317.0,0.00024149,3]
[366286610,1750174257862,-317.0,0.00024149,3]
[366286612,1750174257872,-317.0,0.00024149,3]
[366286614,1750174257881,-317.0,0.00024149,3]
[366286616,1750174257891,-317.0,0.00024149,3]
[366286618,1750174257901,-317.0,0.00024149,3]
[366286620,1750174257910,-205.95149747,0.00024149,3]
[366286622,1750174257920,-151.0,0.0002416,7]
[366286624,1750174257935,-151.0,0.00024164,7]
[366286626,1750174257945,-151.0,0.00024164,7]
[366286628,1750174257959,-159.481499,0.00024164,7]
[366286630,1750174257969,-172.177474,0.00024164,7]
[366286632,1750174257980,-172.177474,0.00024164,7]
[366286634,1750174257990,-151.0,0.00024164,7]
[366286636,1750174258000,-151.0,0.00024164,7]
[366286638,1750174258010,-151.0,0.00024164,7]
[366286640,1750174258021,-460.0,0.00024164,6]
[366286642,1750174258031,-460.0,0.00024164,6]
[366286644,1750174258041,-462.14,0.00024164,6]
[366286646,1750174258051,-151.0,0.00024164,7]
[366286648,1750174258066,-151.0,0.00024164,7]
[366286650,1750174258077,-460.0,0.00024164,6]
[366286652,1750174258087,-460.0,0.00024164,6]
[366286654,1750174258096,-151.0,0.00024164,7]
[366286656,1750174258106,-460.0,0.00024164,6]
[366286658,1750174258116,-460.0,0.00024164,6]
[366286660,1750174258126,-460.0,0.00024164,6]
[366286662,1750174258137,-564.37685458,0.00024164,6]
[366286664,1750174258147,-420.0,0.00024164,6]
[366286666,1750174258157,-460.0,0.00024164,6]
[366286668,1750174258167,-240.0,0.00024164,6]
[366286669,1750174258177,-460.0,0.00024164,6]
[366286671,1750174258189,-488.25321314,0.00024164,6]
[366286673,1750174258199,-460.0,0.00024164,6]
[366286675,1750174258209,-358.75539916,0.00024164,6]
[366286677,1750174258220,-460.0,0.00024164,6]
[366286679,1750174258231,-151.0,0.00024164,7]
[366286681,1750174258241,-1313.94,0.00024164,6]
[366286683,1750174258252,-585.66811992,0.00024164,6]
[366286685,1750174258262,-460.0,0.00024164,6]
[366286687,1750174258272,-469.47745065,0.00024164,6]
[366286689,1750174258282,-460.0,0.00024164,6]
[366286691,1750174258292,-163.756301,0.00024164,7]
[366286693,1750174258303,-460.0,0.00024164,6]
[366286695,1750174258312,-460.0,0.00024164,6]
[366286697,1750174258322,-163.756301,0.00024164,7]
[366286699,1750174258332,-163.756301,0.00024164,7]
[366286701,1750174258341,-460.0,0.00024164,6]
[366286703,1750174258351,-460.0,0.00024164,6]
[366286720,1750174258513,-460.0,0.00024164,6]
[366286723,1750174258536,-460.0,0.00024164,6]
[366286725,1750174258547,-274.41050873,0.00024164,6]
[366286727,1750174258557,-460.0,0.00024164,6]
[366286729,1750174258567,-460.0,0.00024164,6]
[366286731,1750174258577,-161.29075583,0.00024164,6]
[366286733,1750174258586,-460.0,0.00024164,6]
[366286735,1750174258596,-460.0,0.00024164,6]
[366286737,1750174258606,-460.0,0.00024164,6]
[366286738,1750174258617,-265.96767244,0.00024164,6]
[366286740,1750174258627,-460.0,0.00024164,6]
[366286743,1750174258641,-460.0,0.00024164,6]
[366286745,1750174258651,-460.0,0.00024164,2]
[366286747,1750174258661,-460.0,0.00024164,6]
[366286749,1750174258670,-460.0,0.00024164,6]
[366286750,1750174258681,-460.0,0.00024164,6]
[366286752,1750174258691,-460.0,0.00024164,6]
[366286754,1750174258701,-460.0,0.00024164,6]
[366286756,1750174258711,-460.0,0.00024164,6]
[366286758,1750174258721,-460.0,0.00024164,6]
[366286760,1750174258730,-460.0,0.00024164,6]
[366286762,1750174258740,-460.0,0.00024164,6]
[366286764,1750174258750,-500.0,0.00024164,6]
[366286766,1750174258760,-339.30743401,0.00024164,6]
[366286768,1750174258770,-460.0,0.00024164,6]
[366286770,1750174258779,-151.0,0.00024164,7]
[366286772,1750174258789,-460.0,0.00024164,6]
[366286774,1750174258799,-460.0,0.00024164,6]
[366286776,1750174258809,-460.0,0.00024164,6]
[366286778,1750174258820,-151.0,0.00024164,7]
[366286780,1750174258830,-151.0,0.00024164,7]
[366286782,1750174258841,-460.0,0.00024164,6]
[366286784,1750174258852,-460.0,0.00024164,6]
[366286786,1750174258862,-460.0,0.00024164,6]
[366286788,1750174258873,-219.113716,0.00024164,7]
[366286790,1750174258883,-258.42818796,0.00024164,6]
[366286792,1750174258893,-460.0,0.00024164,6]
[366286794,1750174258903,-460.0,0.00024164,6]
[366286796,1750174258913,-460.0,0.00024164,6]
[366286798,1750174258922,-460.0,0.00024164,6]
[366286800,1750174258933,-460.0,0.00024164,6]
[366286802,1750174258946,-460.0,0.00024164,6]
[366286804,1750174258956,-460.0,0.00024164,6]
[366286805,1750174258966,-460.0,0.00024164,6]
[366286807,1750174258977,-460.0,0.00024164,6]
[366286809,1750174258987,-445.45844187,0.00024164,6]
[366286811,1750174258998,-2363.96,0.00024164,2]
[366286812,1750174259008,-460.0,0.00024164,6]
[366286814,1750174259018,-460.0,0.00024164,6]
[366286816,1750174259028,-460.0,0.00024164,6]
[366286818,1750174259038,-460.0,0.00024164,6]
[366286820,1750174259048,-460.0,0.00024164,6]
[366286822,1750174259058,-1327.76,0.00024164,6]
[366286824,1750174259068,-151.0,0.00024164,7]
[366286826,1750174259078,-460.0,0.00024164,6]
[366286828,1750174259089,-380.55223813,0.00024164,6]
[366286830,1750174259098,-460.0,0.00024164,6]
[366286832,1750174259108,-595.65,0.00024164,6]
[366286834,1750174259118,-370.0,0.00024164,6]
[366286836,1750174259128,-460.0,0.00024164,6]
[366286838,1750174259138,-460.0,0.00024164,6]
[366286840,1750174259148,-460.0,0.00024164,6]
[366286842,1750174259158,-540.98869616,0.00024164,6]
[366286844,1750174259168,-460.0,0.00024164,6]
[366286846,1750174259178,-460.0,0.00024164,6]
[366286848,1750174259189,-460.0,0.00024164,6]
[366286850,1750174259199,-460.0,0.00024164,6]
[366286852,1750174259209,-419.75326746,0.00024164,6]
[366286854,1750174259219,-151.0,0.00024164,7]
[366286856,1750174259228,-460.0,0.00024164,6]
[366286858,1750174259238,-460.0,0.00024164,6]
[366286860,1750174259248,-460.0,0.00024164,6]
[366286861,1750174259258,-460.0,0.00024164,6]
[366286864,1750174259268,-460.0,0.00024164,6]
[366286865,1750174259278,-460.0,0.00024164,6]
[366286867,1750174259288,-338.90046785,0.00024164,6]
[366286869,1750174259298,-460.0,0.00024164,6]
[366286871,1750174259308,-506.09528701,0.00024164,6]
[366286873,1750174259317,-460.0,0.00024164,6]
[366286875,1750174259328,-460.0,0.00024164,6]
[366286877,1750174259339,-460.0,0.00024164,6]
[366286879,1750174259349,-460.0,0.00024164,6]
[366286881,1750174259359,-460.0,0.00024164,6]
[366286883,1750174259368,-404.84787253,0.00024164,6]
[366286885,1750174259378,-194.90047896,0.00024164,6]
[366286887,1750174259388,-460.0,0.00024164,6]
[366286889,1750174259398,-460.0,0.00024164,6]
[366286890,1750174259407,-460.0,0.00024164,6]
[366286892,1750174259417,-460.0,0.00024164,6]
[366286894,1750174259427,-151.907426,0.00024164,7]
[366286896,1750174259438,-1288.87,0.00024164,6]
[366286898,1750174259448,-460.0,0.00024164,6]
[366286900,1750174259457,-460.0,0.00024164,6]
[366286901,1750174259467,-460.0,0.00024164,6]
[366286902,1750174259477,-460.0,0.00024164,6]
[366286903,1750174259487,-1647.5,0.00024164,2]
[366286905,1750174259497,-1167.07,0.00024164,6]
[366286907,1750174259506,-460.0,0.00024164,6]
[366286909,1750174259516,-460.0,0.00024164,6]
[366286911,1750174259525,-460.0,0.00024164,6]
[366286912,1750174259535,-282.3695488,0.00024164,6]
[366286913,1750174259545,-460.0,0.00024164,6]
[366286914,1750174259555,-460.0,0.00024164,6]
[366286915,1750174259564,-460.0,0.00024164,6]
[366286916,1750174259574,-460.0,0.00024164,6]
[366286917,1750174259584,-687.51,0.00024164,6]
[366286918,1750174259594,-462.33692961,0.00024164,6]
[366286919,1750174259604,-477.92946374,0.00024164,6]
[366286920,1750174259614,-460.0,0.00024164,6]
[366286921,1750174259624,-269.00066463,0.00024164,6]
[366286923,1750174259634,-1524.41,0.00024164,6]
[366286924,1750174259644,-460.0,0.00024164,6]
[366286926,1750174259654,-460.0,0.00024164,6]
[366286928,1750174259663,-460.0,0.00024164,6]
[366286930,1750174259673,-460.0,0.00024164,6]
[366286932,1750174259683,-460.0,0.00024164,6]
[366286934,1750174259693,-460.0,0.00024164,6]
[366286936,1750174259703,-460.0,0.00024164,6]
[366286938,1750174259713,-460.0,0.00024164,6]
[366286940,1750174259722,-550.0,0.00024164,6]
[366286942,1750174259733,-460.0,0.00024164,6]
[366286944,1750174259744,-339.67707577,0.00024164,6]
[366286946,1750174259754,-151.0,0.00024164,7]
[366286948,1750174259763,-309.68180565,0.00024164,6]
[366286950,1750174259773,-460.0,0.00024164,6]
[366286952,1750174259782,-151.0,0.00024164,7]
[366286954,1750174259792,-460.0,0.00024164,6]
[366286956,1750174259801,-460.0,0.00024164,6]
[366286958,1750174259811,-221.60439,0.00024164,7]
[366286960,1750174259820,-221.60439,0.00024164,7]
[366286962,1750174259830,-455.20554339,0.00024164,6]
[366286964,1750174259840,-486.819755,0.00024164,6]
[366286965,1750174259849,-460.0,0.00024164,6]
[366286967,1750174259859,-553.7,0.00024164,6]
[366286969,1750174259869,-221.60439,0.00024164,7]
[366286971,1750174259879,-221.60439,0.00024164,7]
[366286973,1750174259889,-460.0,0.00024164,6]
[366286975,1750174259898,-262.14125915,0.00024164,6]
[366286977,1750174259908,-1811.52,0.00024164,6]
[366286979,1750174259917,-460.0,0.00024164,6]
[366286981,1750174259927,-460.0,0.00024164,6]
[366286983,1750174259940,-460.0,0.00024164,6]
[366286985,1750174259950,-460.0,0.00024164,6]
[366286987,1750174259959,-430.0,0.00024164,6]
[366286989,1750174259968,-460.0,0.00024164,6]
[366286990,1750174259979,-460.0,0.00024164,6]
[366286992,1750174259989,-460.0,0.00024164,6]
[366286995,1750174259999,-460.0,0.00024164,6]
[366286996,1750174260010,-1098.21,0.00024164,6]
[366286998,1750174260019,-151.0,0.00024164,7]
[366287000,1750174260029,-151.0,0.00024164,7]
[366287002,1750174260039,-460.0,0.00024164,6]
[366287004,1750174260050,-460.0,0.00024164,6]
[366287006,1750174260061,-460.0,0.00024164,6]
[366287008,1750174260072,-460.0,0.00024164,6]
[366287010,1750174260082,-460.0,0.00024164,6]
[366287012,1750174260092,-460.0,0.00024164,6]
[366287014,1750174260103,-460.0,0.00024164,6]
[366287016,1750174260113,-460.0,0.00024164,6]
[366287018,1750174260122,-427.01096742,0.00024164,6]
[366287020,1750174260132,-762.93,0.00024164,6]
[366287022,1750174260142,-385.79006434,0.00024164,6]
[366287024,1750174260152,-460.0,0.00024164,6]
[366287026,1750174260161,-583.62174723,0.00024164,6]
[366287028,1750174260172,-460.0,0.00024164,6]
[366287030,1750174260183,-460.0,0.00024164,6]
[366287032,1750174260192,-460.0,0.00024164,6]
[366287034,1750174260202,-460.0,0.00024164,6]
[366287036,1750174260212,-460.0,0.00024164,6]
[366287038,1750174260222,-330.77784245,0.00024164,6]
[366287040,1750174260232,-482.85335105,0.00024164,6]
[366287042,1750174260242,-460.0,0.00024164,6]
[366287044,1750174260252,-261.407106,0.00024164,7]
[366287046,1750174260262,-277.98287863,0.00024164,6]
[366287047,1750174260271,-261.407106,0.00024164,7]
[366287049,1750174260280,-460.0,0.00024164,6]
[366287051,1750174260291,-460.0,0.00024164,6]
[366287053,1750174260301,-460.0,0.00024164,6]
[366287055,1750174260311,-658.16,0.00024164,6]
[366287057,1750174260321,-460.0,0.00024164,6]
[366287059,1750174260331,-460.0,0.00024164,6]
[366287061,1750174260341,-462.22815629,0.00024164,6]
[366287063,1750174260351,-460.0,0.00024164,6]
[366287065,1750174260360,-460.0,0.00024164,6]
[366287066,1750174260371,-460.0,0.00024164,6]
[366287068,1750174260380,-661.81,0.00024164,6]
[366287070,1750174260390,-460.0,0.00024164,6]
[366287072,1750174260399,-460.0,0.00024164,6]
[366287074,1750174260409,-488.57,0.00024164,6]
[366287075,1750174260419,-460.0,0.00024164,6]
[366287077,1750174260429,-460.0,0.00024164,6]
[366287079,1750174260443,-460.0,0.00024164,6]
[366287080,1750174260453,-460.0,0.00024164,6]
[366287081,1750174260463,-460.0,0.00024164,6]
[366287082,1750174260473,-460.0,0.00024164,6]
[366287083,1750174260485,-460.0,0.00024164,6]
[366287084,1750174260494,-460.0,0.00024164,6]
[366287085,1750174260504,-460.0,0.00024164,6]
[366287086,1750174260513,-487.24187893,0.00024164,5]
[366287087,1750174260523,-460.0,0.00024164,6]
[366287088,1750174260533,-669.32,0.00024164,6]
[366287089,1750174260544,-422.17495604,0.00024164,6]
[366287090,1750174260554,-460.0,0.00024164,6]
[366287091,1750174260564,-460.0,0.00024164,6]
[366287092,1750174260575,-460.0,0.00024164,6]
[366287093,1750174260585,-670.03,0.00024164,6]
[366287094,1750174260596,-460.0,0.00024164,6]
[366287095,1750174260607,-460.0,0.00024164,6]
[366287096,1750174260618,-460.0,0.00024164,6]
[366287097,1750174260628,-460.0,0.00024164,6]
[366287098,1750174260639,-298.18307275,0.00024164,6]
[366287099,1750174260649,-460.0,0.00024164,6]
[366287100,1750174260660,-460.0,0.00024164,6]
[366287101,1750174260670,-460.0,0.00024164,6]
[366287102,1750174260681,-460.0,0.00024164,6]
[366287103,1750174260700,-460.0,0.00024164,6]
[366287104,1750174260805,-460.0,0.00024164,6]
[366287105,1750174260827,-460.0,0.00024164,6]
[366287106,1750174260838,-460.0,0.00024164,6]
[366287107,1750174260849,-460.0,0.00024164,6]
[366287108,1750174260860,-460.0,0.00024164,6]
[366287109,1750174260871,-460.0,0.00024164,6]
[366287110,1750174260881,-460.0,0.00024164,6]
[366287111,1750174260891,-392.15089377,0.00024164,6]
[366287112,1750174260901,-401.40974133,0.00024164,6]
[366287113,1750174260911,-460.0,0.00024164,6]
[366287114,1750174260922,-537.84961724,0.00024164,6]
[366287115,1750174260933,-460.0,0.00024164,6]
[366287116,1750174260948,-460.0,0.00024164,6]
[366287117,1750174260958,-460.0,0.00024164,6]
[366287118,1750174260968,-460.0,0.00024164,6]
[366287119,1750174260979,-461.61508851,0.00024164,6]
[366287120,1750174260989,-460.0,0.00024164,6]
[366287121,1750174260999,-460.0,0.00024164,6]
[366287122,1750174261008,-151.0,0.00024164,7]
[366287123,1750174261021,-460.0,0.00024164,6]
[366287124,1750174261032,-460.0,0.00024164,6]
[366287125,1750174261043,-264.35051329,0.00024164,6]
[366287126,1750174261053,-460.0,0.00024164,6]
[366287127,1750174261062,-151.0,0.00024164,7]
[366287128,1750174261072,-460.0,0.00024164,6]
[366287129,1750174261082,-151.0,0.00024164,7]
[366287130,1750174261092,-440.93179543,0.00024164,6]
[366287131,1750174261101,-460.0,0.00024164,6]
[366287132,1750174261111,-460.0,0.00024164,6]
[366287133,1750174261121,-460.0,0.00024164,6]
[366287134,1750174261131,-436.96312873,0.00024164,6]
[366287135,1750174261140,-460.0,0.00024164,6]
[366287136,1750174261150,-460.0,0.00024164,6]
[366287137,1750174261160,-460.0,0.00024164,6]
[366287138,1750174261169,-460.0,0.00024164,6]
[366287139,1750174261180,-460.0,0.00024164,6]
[366287140,1750174261195,-460.0,0.00024164,6]
[366287141,1750174261206,-460.0,0.00024164,6]
[366287142,1750174261216,-460.0,0.00024164,6]
[366287143,1750174261225,-460.0,0.00024164,6]
[366287144,1750174261235,-460.0,0.00024164,6]
[366287145,1750174261245,-324.12749066,0.00024164,6]
[366287146,1750174261255,-152.48163787,0.00024164,6]
[366287147,1750174261264,-460.0,0.00024164,6]
[366287148,1750174261274,-333.63718952,0.00024164,6]
[366287149,1750174261283,-460.0,0.00024164,6]
[366287150,1750174261293,-460.0,0.00024164,6]
[366287151,1750174261303,-460.0,0.00024164,6]
[366287152,1750174261313,-460.0,0.00024164,6]
[366287153,1750174261322,-460.0,0.00024164,6]
[366287154,1750174261332,-7412.5,0.00024164,6]
[366287155,1750174261342,-3773.16,0.00024164,6]
[366287156,1750174261352,-460.0,0.00024164,6]
[366287157,1750174261361,-278.3828164,0.00024164,6]
[366287158,1750174261371,-460.0,0.00024164,6]
[366287159,1750174261381,-460.0,0.00024164,6]
[366287160,1750174261391,-460.0,0.00024164,6]
[366287161,1750174261400,-460.0,0.00024164,6]
[366287162,1750174261409,-500.0,0.00024164,6]
[366287163,1750174261419,-627.7,0.00024164,6]
[366287164,1750174261428,-460.0,0.00024164,6]
[366287165,1750174261445,-460.0,0.00024164,6]
[366287166,1750174261454,-422.6245373,0.00024164,6]
[366287167,1750174261464,-460.0,0.00024164,6]
[366287168,1750174261474,-1811.58,0.00024164,6]
[366287169,1750174261484,-460.0,0.00024164,6]
[366287170,1750174261494,-1990.04,0.00024164,6]
[366287171,1750174261504,-460.0,0.00024164,6]
[366287172,1750174261514,-460.0,0.00024164,6]
[366287173,1750174261523,-460.0,0.00024164,6]
[366287174,1750174261533,-510.25,0.00024164,6]
[366287175,1750174261543,-460.0,0.00024164,6]
[366287176,1750174261553,-460.0,0.00024164,6]
[366287177,1750174261563,-870.21,0.00024164,6]
[366287178,1750174261572,-701.9,0.00024164,6]
[366287179,1750174261582,-422.83804642,0.00024164,6]
[366287180,1750174261591,-217.34797207,0.00024164,6]
[366287181,1750174261601,-460.0,0.00024164,6]
[366287182,1750174261611,-7264.29,0.00024164,6]